bitfinex-derivatives/quotes_SOLF0:USTF0_20250224
["timestamp","ask_amount","ask_price","bid_price","bid_amount"]
[1740418950450,215.54759803,154.79,154.78,7.001e-05]
[1740418950647,197.40967116,154.79,154.78,7.001e-05]
[1740418950852,196.32157313,154.79,154.78,7.001e-05]
[1740418951055,197.40972279,154.79,154.78,7.001e-05]
[1740418953052,28.28971727,154.79,154.78,7.001e-05]
[1740418953353,55.9678101,155.02,154.78,7.001e-05]
[1740418953556,58.8604101,155.02,154.73,3.0522]
[1740418953759,52.3984101,155.02,154.73,3.0522]
[1740418954058,60.7258101,155.02,154.74,2.47846493]
[1740418954356,0.04200366,154.89,154.86,0.04370172]
[1740418954556,49.5058101,155.02,154.82,11.22]
[1740418954861,49.5058101,155.02,154.92,6.4541]
[1740418955060,49.5058101,155.02,154.93,3.1999]
[1740418955756,0.04136217,154.99,154.96,0.04864782]
[1740418955958,49.5058101,155.02,154.96,0.04864782]
[1740418956259,169.24,155.05,154.96,0.04864782]
[1740418957153,0.04419092,155.02,154.96,0.04864782]
[1740418957559,0.04419092,155.02,154.96,6.50084782]
[1740418958251,169.24,155.05,154.96,0.04864782]
[1740418958451,169.24,155.05,154.99,6.451]
[1740418958754,169.24,155.05,154.97,3.2065]
[1740418958950,164.3398,155.05,154.97,3.2065]
[1740418959360,159.4394,155.05,154.97,3.2065]
[1740418959655,154.56093209,155.05,155.01,6.4504]
[1740418959960,134.78193209,155.05,155.01,6.4504]
[1740418960161,134.78193209,155.05,154.99,0.04233676]
[1740418960757,134.78193209,155.05,155.01,6.4502]
[1740418960953,134.78193209,155.05,154.99,0.04233676]
[1740418961663,134.78193209,155.05,155.0,6.4508]
[1740418962661,134.78193209,155.05,154.99,0.04233676]
[1740418964562,134.78193209,155.05,154.99,6.49323676]
[1740418964968,134.78193209,155.05,155.0,6.4507]
[1740418965360,134.78193209,155.05,154.99,0.04233676]
[1740418968171,134.78193209,155.05,154.99,6.49353676]
[1740418972573,134.78193209,155.05,154.99,0.04233676]
[1740418972773,134.78193209,155.05,155.0,6.4507]
[1740418973775,141.23073209,155.05,155.0,6.4507]
[1740418974975,134.78193209,155.05,155.01,6.45]
[1740418976877,141.23073209,155.05,155.01,6.45]
[1740418977377,72.121938,155.12,154.99,0.04233676]
[1740418977378,52.671938,155.12,154.99,0.04233676]
[1740418977579,52.671938,155.12,155.03,6.4494]
[1740418977580,6.448,155.07,155.03,6.4494]
[1740418977780,6.448,155.07,155.04,0.04365713]
[1740418979180,14.1771,155.12,155.04,0.04365713]
[1740418979381,6.4483,155.06,155.04,0.04365713]
[1740418981189,6.4473,155.09,155.04,0.04365713]
[1740418981581,179.98,155.14,155.04,0.04365713]
[1740418981781,179.98,155.14,155.04,6.4489]
[1740418981981,179.98,155.14,155.07,0.04656698]
[1740418982183,6.4479,155.08,155.07,0.04656698]
[1740418982878,6.4479,155.08,155.07,6.698e-05]
[1740418984587,6.4937,155.09,155.07,6.698e-05]
[1740418985090,6.4475,155.08,155.07,6.698e-05]
[1740418985489,9.1152,155.25,155.07,6.698e-05]
[1740418985791,9.1152,155.25,154.99,101.60153952]
[1740418985792,9.1152,155.25,154.99,14.1868]
[1740418985988,9.1152,155.25,155.0,1.18468089]
[1740418986393,20.2352,155.25,155.0,1.18468089]
[1740418986593,20.2352,155.25,155.11,0.04186046]
[1740418986894,20.2352,155.25,155.16,6.444]
[1740418987088,20.2352,155.25,155.16,6.49137504]
[1740418987387,6.4409,155.24,155.17,6.4436]
[1740418987586,20.2352,155.25,155.07,11.1]
[1740418987786,17.2493,155.25,155.19,0.04221984]
[1740418988088,17.2493,155.25,155.2,0.04952756]
[1740418988287,17.2493,155.25,155.07,85.61233952]
[1740418988489,36.6993,155.25,155.21,0.04665344]
[1740418988690,36.6993,155.25,155.07,85.61233952]
[1740418988891,36.6993,155.25,155.13,6.445]
[1740418989289,17.2493,155.25,155.08,3.2623]
[1740418989489,17.2493,155.25,155.14,6.4449]
[1740418989787,0.04447963,155.21,155.18,0.04717304]
[1740418990895,6.4425,155.2,155.18,0.04717304]
[1740418991490,6.48667963,155.21,155.18,0.04717304]
[1740418991896,6.4426,155.2,155.18,0.04717304]
[1740418992495,0.04447963,155.21,155.09,3.1935]
[1740418992690,30.51,155.23,155.09,3.1935]
[1740418993592,30.51,155.23,155.12,6.4458]
[1740418993789,6.4439,155.17,155.14,0.04850041]
[1740418993991,0.04398056,155.18,155.14,0.04850041]
[1740418994793,6.48738056,155.18,155.14,0.04850041]
[1740418994989,0.04398056,155.18,155.14,0.04850041]
[1740418996799,6.4442,155.16,155.14,0.04850041]
[1740418997196,30.47,155.15,155.02,25.52554098]
[1740418997398,2.994,155.14,155.02,25.52554098]
[1740418997601,2.994,155.14,155.06,6.448]
[1740418997800,6.4466,155.11,155.06,6.448]
[1740418998002,2.994,155.14,155.02,25.52554098]
[1740418998406,6.4475,155.08,155.06,0.04959672]
[1740418999804,0.04183133,155.1,155.06,0.04959672]
[1740419002004,0.04183133,155.1,155.08,6.4474]
[1740419002308,0.04183133,155.1,155.06,0.04959672]
[1740419002709,0.04183133,155.1,155.07,6.4476]
[1740419003008,0.04183133,155.1,155.06,0.04959672]
[1740419003708,0.04183133,155.1,155.09,6.447]
[1740419006109,0.04183133,155.1,155.08,6.4473]
[1740419006804,0.04183133,155.1,155.06,0.04959672]
[1740419008213,0.04183133,155.1,155.08,6.4473]
[1740419008514,0.04183133,155.1,155.06,0.04959672]
[1740419009915,6.4479,155.07,155.06,0.04959672]
[1740419010118,3.1522,155.09,155.02,34.1906036]
[1740419010613,6.4489,155.05,155.02,34.1906036]
[1740419011215,6.4489,155.05,155.01,6.4502]
[1740419011417,6.49807586,155.05,155.02,0.04770984]
[1740419011710,6.4495,155.03,155.02,0.04770984]
[1740419013718,6.49817586,155.05,155.02,0.04770984]
[1740419014014,0.04917586,155.05,155.02,0.04770984]
[1740419014319,6.49797586,155.05,155.02,0.04770984]
[1740419016419,6.4492,155.04,155.02,0.04770984]
[1740419016814,0.04917586,155.05,155.02,0.04770984]
[1740419018117,6.4495,155.04,155.02,0.04770984]
[1740419018316,0.04917586,155.05,155.02,0.04770984]
[1740419018523,0.04917586,155.05,154.97,6.452]
[1740419018712,6.4507,155.01,154.97,6.452]
[1740419019317,3.2485,155.06,154.97,6.452]
[1740419019721,0.04256885,155.03,155.0,0.04245564]
[1740419020016,6.45,155.02,155.0,0.04245564]
[1740419020723,0.04256885,155.03,155.0,0.04245564]
[1740419020724,6.49236885,155.03,155.0,0.04245564]
[1740419022023,0.04256885,155.03,155.0,0.04245564]
[1740419022623,0.04256885,155.03,155.01,6.4501]
[1740419023226,0.04256885,155.03,155.02,6.45]
[1740419030335,0.04256885,155.03,155.0,0.04245564]
[1740419031234,6.4504,155.01,155.0,0.04245564]
[1740419031527,3.1838,155.02,154.92,8.66506262]
[1740419031934,6.4512,154.99,154.95,6.4526]
[1740419032535,0.04721351,154.99,154.95,0.04541962]
[1740419032734,0.04721351,154.99,154.97,6.452]
[1740419033235,0.04721351,154.99,154.98,6.4516]
[1740419034937,1.351e-05,154.99,154.98,6.4516]
[1740419039139,1.351e-05,154.99,154.98,80.96393952]
[1740419040535,6.4257,155.13,154.98,80.96393952]
[1740419040536,3.1684,155.19,154.98,74.51233952]
[1740419040737,6.0167,155.18,155.01,12.9007]
[1740419040935,6.0167,155.18,155.02,10.9]
[1740419040936,6.4444,155.16,155.02,10.9]
[1740419041144,6.0167,155.18,155.13,6.4451]
[1740419041435,6.0167,155.18,155.03,12.899]
[1740419041641,6.0167,155.18,155.03,87.41133952]
[1740419041854,0.04773341,155.12,155.09,0.04953846]
[1740419042141,3.341e-05,155.12,155.09,0.04953846]
[1740419042335,3.341e-05,155.12,155.11,6.4462]
[1740419055852,3.341e-05,155.12,155.09,6.49633846]
[1740419056142,3.341e-05,155.12,155.09,0.04953846]
[1740419056350,3.341e-05,155.12,155.07,6.4475]
[1740419056650,3.2811,155.13,155.07,6.4475]
[1740419057147,6.4469,155.1,155.07,6.4475]
[1740419057452,6.49263585,155.1,155.07,6.49084406]
[1740419058042,0.04573585,155.1,155.09,6.447]
[1740419071762,0.04573585,155.1,155.08,6.4472]
[1740419072167,0.04573585,155.1,155.07,0.04334406]
[1740419072359,0.04573585,155.1,155.03,34.25181452]
[1740419073474,0.04573585,155.1,155.05,0.04916074]
[1740419074472,6.4482,155.07,155.05,0.04916074]
[1740419074869,6.1955,155.09,154.98,34.25181452]
[1740419075467,6.4494,155.04,155.0,6.4507]
[1740419075676,6.1955,155.09,154.98,34.25181452]
[1740419075975,6.449,155.05,155.01,6.4501]
[1740419076171,0.04864574,155.05,155.02,0.04252143]
[1740419077474,0.04864574,155.05,155.04,6.4491]
[1740419077676,0.04864574,155.05,155.02,0.04252143]
[1740419078568,0.04864574,155.05,155.03,6.4491]
[1740419078771,0.04864574,155.05,155.02,0.04252143]
[1740419079173,0.04864574,155.05,155.03,6.4495]
[1740419079473,0.04864574,155.05,155.02,0.04252143]
[1740419079775,6.49764574,155.05,155.02,6.49222143]
[1740419080474,0.04864574,155.05,155.02,0.04252143]
[1740419080673,0.04864574,155.05,155.03,6.4495]
[1740419082473,0.04864574,155.05,155.04,6.4491]
[1740419086676,0.04864574,155.05,155.02,0.04252143]
[1740419087274,0.04864574,155.05,155.04,6.4491]
[1740419091380,19.37,155.22,155.02,0.04252143]
[1740419091586,9.6316,155.18,155.1,6.4466]
[1740419092680,0.04378916,155.16,155.12,0.04268581]
[1740419092875,6.4452,155.14,155.12,0.04268581]
[1740419093680,0.04378916,155.16,155.02,74.51233952]
[1740419093881,29.0016,155.18,155.06,6.4481]
[1740419093882,6.4466,155.1,155.06,6.4481]
[1740419094185,30.25,155.15,155.02,8.72627354]
[1740419094376,30.25,155.15,155.04,6.449]
[1740419094377,6.4478,155.08,155.04,6.449]
[1740419094881,6.4484,155.06,155.04,0.04074188]
[1740419095291,3.21229069,155.08,155.04,0.04074188]
[1740419096389,9.65989069,155.08,155.04,6.48954188]
[1740419098687,6.448,155.07,155.04,6.48954188]
[1740419100889,3.1519,155.06,154.95,34.25181452]
[1740419101287,6.4505,155.01,154.96,6.4522]
[1740419101493,3.1519,155.06,154.95,34.25181452]
[1740419101893,0.04296232,155.02,154.99,0.04599885]
[1740419102494,0.04296232,155.02,154.99,6.49699885]
[1740419102695,0.04296232,155.02,154.99,0.04599885]
[1740419102897,221.97644149,155.25,154.99,74.55833837]
[1740419103100,3.081,155.21,155.12,6.4455]
[1740419103497,106.55152919,155.18,155.12,6.4455]
[1740419103688,106.55152919,155.18,155.07,10.88]
[1740419104198,0.04276037,155.14,155.11,0.04829441]
[1740419104497,106.55152919,155.18,155.01,10.88]
[1740419104692,0.04317859,155.14,155.1,6.4466]
[1740419105197,0.04317859,155.14,155.08,0.04907306]
[1740419106097,6.4456,155.13,155.08,0.04907306]
[1740419106700,6.4462,155.11,155.08,0.04907306]
[1740419108500,9.8226,155.13,155.08,0.04907306]
[1740419108796,3.3768,155.13,155.08,0.04907306]
[1740419108997,6.4458,155.12,155.08,0.04907306]
[1740419110900,3.3768,155.13,155.08,0.04907306]
[1740419111294,0.04317859,155.14,155.08,0.04907306]
[1740419111995,0.04317859,155.14,155.13,6.4454]
[1740419112194,0.04317859,155.14,155.01,77.56903952]
[1740419112399,3.3149,155.16,155.12,0.0426921]
[1740419112596,9.7593,155.16,155.11,6.4459]
[1740419112900,3.36049249,155.16,155.01,77.56903952]
[1740419113095,3.3149,155.16,155.01,77.56903952]
[1740419113297,6.4453,155.14,155.09,6.447]
[1740419113493,6.4453,155.14,155.01,77.56903952]
[1740419114000,0.04672017,155.09,155.08,6.4473]
[1740419114295,3.3149,155.16,155.01,111.82085404]
[1740419114500,0.04126167,155.1,155.07,0.04263819]
[1740419115200,0.04126167,155.1,155.08,6.4474]
[1740419115397,0.04126167,155.1,155.07,0.04263819]
[1740419115995,0.04126167,155.1,155.07,6.49023819]
[1740419116399,0.04126167,155.1,155.07,0.04263819]
[1740419116903,6.4475,155.08,155.07,0.04263819]
[1740419117496,6.4485,155.06,154.99,35.044725]
[1740419117701,3.1627,155.09,154.99,35.044725]
[1740419118100,6.4481,155.07,155.03,6.4493]
[1740419118297,3.1627,155.09,154.99,35.044725]
[1740419118499,3.1627,155.09,155.02,6.49234201]
[1740419118500,6.497112,155.06,155.02,6.49234201]
[1740419118701,0.048512,155.06,155.02,0.04244201]
[1740419119106,6.449,155.05,155.02,0.04244201]
[1740419120409,0.048512,155.06,155.02,0.04244201]
[1740419120410,6.4494,155.04,155.02,0.04244201]
[1740419120800,6.4491,155.05,155.02,0.04244201]
[1740419121401,6.4491,155.05,155.02,6.49224201]
[1740419121601,6.4491,155.05,155.02,0.04244201]
[1740419121808,0.048512,155.06,155.02,0.04244201]
[1740419124207,6.4495,155.03,155.02,0.04244201]
[1740419125109,0.048512,155.06,155.02,0.04244201]
[1740419125605,0.048512,155.06,155.05,6.4487]
[1740419127408,1.2e-05,155.06,155.05,6.4487]
[1740419131909,1.2e-05,155.06,155.05,80.96103952]
[1740419132113,1.2e-05,155.06,155.05,91.84103952]
[1740419136724,6.4442,155.16,155.05,85.39233952]
[1740419137021,6.4442,155.16,155.12,6.4455]
[1740419137516,6.4446,155.15,155.11,6.4462]
[1740419137716,3.2896,155.15,155.11,6.4462]
[1740419137916,3.33889673,155.15,155.11,6.49177245]
[1740419138123,6.4451,155.14,155.11,0.04557245]
[1740419138530,12.844,155.14,155.11,0.04557245]
[1740419139018,6.3989,155.14,155.11,0.04557245]
[1740419139224,6.4454,155.13,155.11,0.04557245]
[1740419139524,6.3989,155.14,155.11,0.04557245]
[1740419140927,3.0829,155.14,155.11,0.04557245]
[1740419142027,6.4454,155.13,155.11,0.04557245]
[1740419142624,6.4458,155.12,155.11,0.04557245]
[1740419142829,6.4449,155.14,155.11,0.04557245]
[1740419143218,6.4455,155.13,155.11,0.04557245]
[1740419144631,6.4458,155.12,155.11,0.04557245]
[1740419145632,6.4449,155.14,155.03,3.2888]
[1740419146231,6.4469,155.1,155.06,6.4482]
[1740419146628,6.4469,155.1,155.03,3.2888]
[1740419146827,6.49147723,155.1,155.06,0.04348715]
[1740419147233,0.04457723,155.1,155.06,0.04348715]
[1740419147432,6.4478,155.08,155.06,0.04348715]
[1740419149247,6.4479,155.07,155.06,0.04348715]
[1740419149636,0.04457723,155.1,154.99,0.79291048]
[1740419149833,6.4486,155.06,155.02,6.4499]
[1740419150525,19.335,155.14,155.01,6.4502]
[1740419150731,0.04067749,155.06,155.02,0.04061376]
[1740419150937,19.335,155.14,155.01,6.4502]
[1740419151138,0.04286745,155.06,155.02,0.04066372]
[1740419151331,19.335,155.14,155.01,6.4502]
[1740419151535,0.04430121,155.06,155.02,0.04696893]
[1740419151736,6.4494,155.04,155.02,0.04537486]
[1740419151939,6.4494,155.04,155.01,6.4502]
[1740419152137,6.4494,155.04,155.01,6.49696148]
[1740419152633,6.4497,155.03,155.01,0.04676148]
[1740419153434,6.45,155.02,155.01,0.04676148]
[1740419154136,6.4509,155.0,154.91,34.25181452]
[1740419154438,6.4984,155.05,154.91,34.25181452]
[1740419154637,6.4501,155.02,154.91,34.25181452]
[1740419154837,6.4501,155.02,154.98,6.4513]
[1740419155042,6.4984,155.05,154.98,6.4513]
[1740419155334,0.04900145,155.02,155.0,6.4505]
[1740419155528,0.04900145,155.02,154.98,0.04534511]
[1740419156539,0.04900145,155.02,154.99,6.451]
[1740419156932,0.04900145,155.02,154.98,0.04534511]
[1740419157132,0.04900145,155.02,155.01,6.4504]
[1740419158147,1.45e-06,155.02,155.01,6.4504]
[1740419160335,1.45e-06,155.02,154.98,0.04534511]
[1740419160544,1.45e-06,155.02,155.01,6.4504]
[1740419160937,1.45e-06,155.02,155.0,6.4506]
[1740419161136,1.45e-06,155.02,154.98,0.04534511]
[1740419161541,1.45e-06,155.02,155.01,6.4504]
[1740419163036,1.45e-06,155.02,154.98,0.04534511]
[1740419163441,6.4516,154.98,154.95,6.4525]
[1740419163643,1.9867,155.01,154.92,34.25181452]
[1740419163940,4.1186,155.01,154.92,34.25181452]
[1740419164136,6.4523,154.97,154.94,6.4532]
[1740419164446,4.1186,155.01,154.9,8.72627354]
[1740419164639,0.04888064,154.97,154.94,0.04610747]
[1740419165145,8.064e-05,154.97,154.96,6.4525]
[1740419169446,8.064e-05,154.97,154.94,0.04610747]
[1740419170343,8.064e-05,154.97,154.91,8.72627354]
[1740419171750,8.064e-05,154.97,154.94,6.4532]
[1740419171945,8.064e-05,154.97,154.94,3.1891]
[1740419172141,8.064e-05,154.97,154.92,0.04467022]
[1740419172748,8.064e-05,154.97,154.95,6.4526]
[1740419173252,8.064e-05,154.97,154.92,0.04467022]
[1740419173642,10.88,154.96,154.82,2.19967354]
[1740419173940,6.4571,154.85,154.81,24.45931452]
[1740419174248,10.88,154.87,154.81,24.45931452]
[1740419174553,2.0415,154.84,154.81,24.45931452]
[1740419174944,2.0415,154.84,154.81,17.97119566]
[1740419175150,6.4583,154.83,154.81,17.97119566]
[1740419175445,2.0415,154.84,154.81,17.97119566]
[1740419176049,2.0415,154.84,154.81,13.50009566]
[1740419176351,6.4583,154.82,154.81,0.04291249]
[1740419177553,6.4583,154.82,154.81,1.249e-05]
[1740419179650,0.04218702,154.86,154.81,1.249e-05]
[1740419180252,6.4583,154.83,154.81,1.249e-05]
[1740419180755,0.04218702,154.86,154.81,1.249e-05]
[1740419182252,6.4583,154.82,154.81,1.249e-05]
[1740419188657,25.8283,154.82,154.81,1.249e-05]
[1740419189061,26.9075631,154.82,154.81,1.249e-05]
[1740419189854,46.2775631,154.82,154.81,1.249e-05]
[1740419190056,6.465,154.66,154.62,3.9884]
[1740419190960,10.88,154.73,154.62,3.9884]
[1740419191155,0.04179846,154.66,154.62,4.01020124]
[1740419191352,0.04179846,154.66,154.62,3.9884]
[1740419191557,0.04179846,154.66,154.62,4.01020124]
[1740419191963,6.4645,154.68,154.62,4.01020124]
[1740419192857,14.2195,154.76,154.62,4.01020124]
[1740419193058,13.0015,154.76,154.62,3.9884]
[1740419193260,0.04867054,154.71,154.67,0.04820796]
[1740419193563,0.04867054,154.71,154.68,6.4641]
[1740419194263,0.04867054,154.71,154.69,2.0038]
[1740419196761,10.88,154.78,154.69,2.0038]
[1740419197161,15.0089,154.83,154.69,2.0038]
[1740419197362,10.88,154.82,154.7,2.048]
[1740419198062,6.4607,154.77,154.74,0.0471727]
[1740419198263,0.04760151,154.78,154.74,0.0471727]
[1740419198462,6.4612,154.75,154.74,0.0471727]
[1740419200967,6.4612,154.75,154.62,74.51233952]
[1740419200968,6.464,154.69,154.62,74.51233952]
[1740419201164,6.464,154.69,154.61,2.0989]
[1740419201365,19.37,154.79,154.61,2.0989]
[1740419202070,0.04252145,154.72,154.68,0.04574999]
[1740419202265,0.04252145,154.72,154.66,6.4647]
[1740419202470,19.37,154.79,154.68,0.04664531]
[1740419202666,0.04203301,154.71,154.65,6.4651]
[1740419202867,10.88,154.74,154.72,2.041e-05]
[1740419203066,12.9319,154.73,154.61,2.0989]
[1740419203262,6.4647,154.67,154.63,6.4661]
[1740419203568,12.9319,154.73,154.61,2.0989]
[1740419203866,6.4652,154.66,154.62,6.4663]
[1740419204061,0.04343675,154.69,154.65,0.02169754]
[1740419204267,2.0519,154.73,154.65,0.02169754]
[1740419204469,0.04629023,154.69,154.65,0.02169754]
[1740419204967,6.4642,154.68,154.65,0.02169754]
[1740419206480,0.04629023,154.69,154.65,0.02169754]
[1740419207377,180.1,154.76,154.65,0.02169754]
[1740419207569,180.1,154.76,154.61,2.0989]
[1740419207768,180.1,154.76,154.61,12.9789]
[1740419208575,0.04674567,154.7,154.67,0.04648438]
[1740419208975,6.464,154.69,154.67,0.04648438]
[1740419209678,6.4639,154.69,154.67,0.04648438]
[1740419210075,0.04674567,154.7,154.67,0.04648438]
[1740419210677,10.88,154.78,154.67,0.04648438]
[1740419210874,10.88,154.78,154.61,12.9789]
[1740419211477,6.4621,154.73,154.69,6.4636]
[1740419211679,10.88,154.78,154.61,12.9789]
[1740419212180,19.4577,154.81,154.69,6.4636]
[1740419212181,0.04863346,154.71,154.69,6.4636]
[1740419212475,6.4622,154.73,154.69,6.4634]
[1740419212680,0.0461959,154.72,154.61,12.9789]
[1740419212979,10.88,154.79,154.61,12.9789]
[1740419213173,6.4616,154.75,154.65,0.04538113]
[1740419213482,183.5041,154.8,154.61,12.9789]
[1740419213681,183.5041,154.8,154.72,6.4624]
[1740419213682,6.4614,154.75,154.72,6.4624]
[1740419213978,182.2902,154.8,154.62,12.9332]
[1740419214177,0.04132572,154.73,154.69,0.04442228]
[1740419214378,0.04132572,154.73,154.62,12.9332]
[1740419214682,182.2902,154.8,154.69,0.04548956]
[1740419214979,0.04216967,154.76,154.61,12.9789]
[1740419215179,182.2902,154.8,154.63,12.9323]
[1740419215380,0.04336194,154.7,154.67,0.04793916]
[1740419215682,182.2902,154.8,154.63,12.9323]
[1740419215884,6.4611,154.76,154.64,12.9316]
[1740419216781,0.04367674,154.72,154.68,0.04685841]
[1740419216978,6.4611,154.76,154.72,6.4621]
[1740419218080,0.04152902,154.76,154.75,6.4612]
[1740419218477,10.88,154.84,154.72,0.04836415]
[1740419218683,10.88,154.84,154.69,3.989]
[1740419218978,1.9875,154.86,154.69,3.989]
[1740419219385,6.4591,154.8,154.77,6.46]
[1740419219783,6.50768121,154.8,154.77,6.50624601]
[1740419219988,6.46,154.78,154.77,0.04624601]
[1740419221981,0.04858121,154.8,154.77,0.04624601]
[1740419222181,0.04858121,154.8,154.78,6.4599]
[1740419222387,0.04858121,154.8,154.78,8.4735]
[1740419223185,0.04858121,154.8,154.79,6.4595]
[1740419223679,6.4582,154.83,154.79,6.4595]
[1740419223877,6.4582,154.83,154.8,6.4588]
[1740419224278,10.88,154.9,154.78,4.0071]
[1740419224478,19.37,154.88,154.71,10.88]
[1740419224681,24.21604247,154.88,154.72,3.9983]
[1740419224989,6.4595,154.79,154.78,0.04436717]
[1740419225189,206.9127,154.87,154.74,6.4613]
[1740419225384,0.04172282,154.8,154.77,0.04471335]
[1740419225696,211.75959123,154.87,154.74,6.4613]
[1740419225989,0.04207903,154.8,154.77,0.04414793]
[1740419226186,6.4595,154.79,154.76,6.4605]
[1740419226384,0.04623207,154.8,154.77,0.04260697]
[1740419226576,17.75959123,154.87,154.75,6.4611]
[1740419226577,6.4602,154.78,154.75,6.4611]
[1740419226775,0.04880448,154.8,154.77,0.04256262]
[1740419226982,12.9145,154.85,154.72,3.9983]
[1740419227181,6.4613,154.75,154.72,10.4606]
[1740419227488,6.50511453,154.75,154.72,10.4606]
[1740419227686,6.50511453,154.75,154.72,10.50883289]
[1740419229485,6.4617,154.74,154.72,10.50883289]
[1740419230583,6.4617,154.74,154.72,4.04653289]
[1740419230783,6.462,154.73,154.72,0.04823289]
[1740419232887,19.37,154.71,154.62,6.49092857]
[1740419233085,213.37,154.7,154.62,2.857e-05]
[1740419233584,1.08023797,154.69,154.62,2.857e-05]
[1740419233783,17.46293379,154.69,154.62,2.857e-05]
[1740419233984,0.04331627,154.67,154.64,0.04728578]
[1740419234185,194.0,154.66,154.61,64.35371249]
[1740419234383,6.4666,154.63,154.58,64.35371249]
[1740419235087,6.4668,154.62,154.58,64.35371249]
[1740419235284,0.04177729,154.62,154.59,0.04539577]
[1740419236785,6.4671,154.61,154.59,0.04539577]
[1740419237289,0.04177729,154.62,154.59,0.04539577]
[1740419241093,6.4674,154.61,154.59,0.04539577]
[1740419242888,0.04177729,154.62,154.59,0.04539577]
[1740419243892,6.4673,154.61,154.59,0.04539577]
[1740419244586,0.04177729,154.62,154.51,10.3407]
[1740419244790,30.25,154.65,154.51,10.3407]
[1740419244996,30.25,154.65,154.51,3.8698]
[1740419245194,6.4689,154.57,154.51,3.8698]
[1740419245689,0.0466392,154.56,154.51,3.8698]
[1740419245893,0.0466392,154.56,154.53,0.04929637]
[1740419246591,6.5159392,154.56,154.53,0.04929637]
[1740419247591,0.0466392,154.56,154.53,0.04929637]
[1740419248198,194.0,154.66,154.53,0.04929637]
[1740419248393,1.7062,154.71,154.57,6.4686]
[1740419248394,6.4659,154.64,154.57,6.4686]
[1740419248792,10.88,154.7,154.55,6.4695]
[1740419248992,1.08027808,154.69,154.52,1.9315]
[1740419249193,0.04714072,154.62,154.59,0.04649137]
[1740419249398,6.4667,154.62,154.55,6.4696]
[1740419249596,6.50808561,154.62,154.59,0.0439725]
[1740419249799,0.04138561,154.62,154.59,0.0439725]
[1740419250599,6.4671,154.61,154.59,0.0439725]
[1740419251595,0.04138561,154.62,154.59,0.0439725]
[1740419252200,10.88,154.72,154.61,6.4671]
[1740419252400,10.88,154.72,154.51,3.8698]
[1740419252706,6.4662,154.64,154.51,3.8698]
[1740419253100,194.0,154.74,154.51,3.8698]
[1740419253307,6.4652,154.66,154.51,3.8698]
[1740419253501,0.04283183,154.63,154.59,0.0424291]
[1740419253705,6.4648,154.67,154.51,3.8698]
[1740419253908,0.04075724,154.63,154.59,0.04730904]
[1740419254108,10.88,154.72,154.59,0.04730904]
[1740419254405,6.465,154.66,154.51,78.38213952]
[1740419254607,10.88,154.72,154.51,78.38213952]
[1740419254810,10.88,154.72,154.51,3.8698]
[1740419255007,6.4657,154.65,154.6,6.4674]
[1740419255207,0.04084514,154.64,154.61,0.04729578]
[1740419255411,10.88,154.72,154.52,10.88]
[1740419255712,0.0473689,154.64,154.61,0.04427637]
[1740419256018,0.0473689,154.64,154.51,3.8698]
[1740419256019,6.4685,154.58,154.51,3.8698]
[1740419256206,10.88,154.64,154.51,3.8698]
[1740419256407,0.0484101,154.56,154.53,0.04416996]
[1740419256615,6.4694,154.56,154.51,10.3407]
[1740419256815,0.04154208,154.56,154.53,0.0436676]
[1740419257620,6.4696,154.55,154.53,0.0436676]
[1740419257821,0.04154208,154.56,154.53,0.0436676]
[1740419259223,6.4696,154.55,154.53,0.0436676]
[1740419259523,0.04154208,154.56,154.53,0.0436676]
[1740419259724,6.47,154.54,154.53,0.0436676]
[1740419262727,6.47,154.54,154.53,6.76e-05]
[1740419264922,25.84,154.54,154.53,6.76e-05]
[1740419265720,6.47,154.54,154.53,6.76e-05]
[1740419277226,177.58115319,154.67,154.53,6.76e-05]
[1740419277428,177.58115319,154.67,154.47,3.8259]
[1740419277429,106.55152919,154.67,154.47,3.8259]
[1740419277832,106.55152919,154.67,154.48,12.9447]
[1740419278333,106.55152919,154.67,154.6,6.4674]
[1740419278529,106.55152919,154.67,154.48,87.45703952]
[1740419278734,106.55152919,154.67,154.62,0.04775172]
[1740419278928,0.04196231,154.59,154.49,1.18873902]
[1740419279130,113.01632919,154.67,154.49,1.18873902]
[1740419279439,106.55152919,154.67,154.6,6.4672]
[1740419279827,106.55152919,154.67,154.48,74.51233952]